bitfinex-derivatives/quotes_BNBF0:USTF0_20250630
["timestamp","ask_amount","ask_price","bid_price","bid_amount"]
[1751302433435,0.26437642,658.68,657.82,2.626]
[1751302433636,0.26437642,658.68,657.83,1.06075957]
[1751302433836,0.26437642,658.68,657.84,1.06075957]
[1751302434036,0.26437642,658.68,657.85,1.06075957]
[1751302434233,0.26437642,658.68,657.86,1.06075957]
[1751302434433,0.26437642,658.68,657.82,2.626]
[1751302434637,0.26437642,658.68,657.83,1.0608359]
[1751302434834,0.26437642,658.68,657.84,1.0608359]
[1751302435035,0.26437642,658.68,657.85,1.0608359]
[1751302435231,0.26437642,658.68,657.82,2.626]
[1751302435232,0.26437642,658.68,657.86,1.0608359]
[1751302435434,0.26437642,658.68,657.82,2.626]
[1751302435634,0.26437642,658.68,657.83,1.06109117]
[1751302435836,0.26437642,658.68,657.84,1.06109117]
[1751302436034,0.26437642,658.68,657.85,1.06109117]
[1751302436234,0.26437642,658.68,657.86,1.06109117]
[1751302436436,0.26437642,658.68,657.82,2.626]
[1751302436635,0.26437642,658.68,657.83,1.0613925]
[1751302436835,0.26437642,658.68,657.84,1.0613925]
[1751302437035,0.26437642,658.68,657.85,1.0613925]
[1751302437240,0.26437642,658.68,657.86,1.0613925]
[1751302437438,0.26437642,658.68,657.52,2.266]
[1751302437636,0.26437642,658.68,657.53,1.06172725]
[1751302437839,0.26437642,658.68,657.54,1.06172725]
[1751302438039,0.26437642,658.68,657.55,1.06172725]
[1751302438238,0.26437642,658.68,657.56,1.06172725]
[1751302438438,0.26437642,658.68,657.57,1.06172725]
[1751302438737,0.26437642,658.68,657.58,1.06172725]
[1751302439042,0.26437642,658.68,657.59,1.06172725]
[1751302439341,0.26437642,658.68,657.6,1.06172725]
[1751302439542,0.26437642,658.68,657.61,1.06172725]
[1751302439841,0.26437642,658.68,657.62,1.06172725]
[1751302440041,0.26437642,658.68,657.63,1.06172725]
[1751302440238,0.26437642,658.68,657.64,1.06172725]
[1751302440538,0.26437642,658.68,657.65,1.06172725]
[1751302440842,0.26437642,658.68,657.66,1.06172725]
[1751302441039,0.26437642,658.68,657.67,1.06172725]
[1751302441341,0.26437642,658.68,657.68,1.06172725]
[1751302441636,0.26437642,658.68,657.69,1.06172725]
[1751302441841,0.26437642,658.68,657.7,1.06172725]
[1751302442039,0.26437642,658.68,657.71,1.06172725]
[1751302442241,0.26437642,658.68,657.72,1.06172725]
[1751302442536,0.26437642,658.68,657.73,1.06172725]
[1751302442739,0.26437642,658.68,657.74,1.06172725]
[1751302442937,0.26437642,658.68,657.75,1.06172725]
[1751302443141,0.26437642,658.68,657.76,1.06172725]
[1751302443340,0.26437642,658.68,657.64,2.009]
[1751302443341,0.26437642,658.68,657.77,1.06172725]
[1751302443540,0.26437642,658.68,657.78,1.06172725]
[1751302443842,0.26437642,658.68,657.79,1.06172725]
[1751302444040,0.26437642,658.68,657.8,1.06172725]
[1751302444238,0.26437642,658.68,657.81,1.06172725]
[1751302444442,0.26437642,658.68,657.82,1.06172725]
[1751302444640,0.26437642,658.68,657.81,1.491]
[1751302444641,0.26437642,658.68,657.83,1.06172725]
[1751302444840,0.26437642,658.68,657.84,1.06172725]
[1751302445038,0.26437642,658.68,657.85,1.06172725]
[1751302445242,0.26437642,658.68,657.86,1.06172725]
[1751302445441,0.26437642,658.68,657.81,1.491]
[1751302445442,0.26437642,658.68,657.87,1.06172725]
[1751302445739,0.26437642,658.68,657.88,1.06172725]
[1751302446038,0.26437642,658.68,657.89,1.06172725]
[1751302446240,0.26437642,658.68,657.9,1.06172725]
[1751302446442,0.26437642,658.68,657.91,1.06172725]
[1751302446642,0.26437642,658.68,657.92,1.06172725]
[1751302446840,0.26437642,658.68,657.93,1.06172725]
[1751302447043,0.26437642,658.68,657.94,1.06172725]
[1751302447339,0.26437642,658.68,657.95,1.06172725]
[1751302447544,0.26437642,658.68,657.96,1.06172725]
[1751302447746,0.26437642,658.68,657.97,1.06172725]
[1751302447947,0.26437642,658.68,657.98,1.06172725]
[1751302448147,0.26437642,658.68,657.81,1.491]
[1751302448348,0.26437642,658.68,657.82,1.06443755]
[1751302448548,0.26437642,658.68,657.83,1.06443755]
[1751302448743,0.26437642,658.68,657.84,1.06443755]
[1751302448945,0.26437642,658.68,657.85,1.06443755]
[1751302449148,0.26437642,658.68,657.86,1.06443755]
[1751302449349,0.26437642,658.68,657.87,1.06443755]
[1751302449549,0.26437642,658.68,657.88,1.06443755]
[1751302449847,0.26437642,658.68,657.89,1.06443755]
[1751302450045,0.26437642,658.68,657.9,1.06443755]
[1751302450349,0.26437642,658.68,657.91,1.06443755]
[1751302450651,0.26437642,658.68,657.92,1.06443755]
[1751302450949,0.26437642,658.68,657.93,1.06443755]
[1751302451149,0.26437642,658.68,657.94,1.06443755]
[1751302451349,0.26437642,658.68,657.95,1.06443755]
[1751302451549,0.26437642,658.68,657.96,1.06443755]
[1751302451849,0.26437642,658.68,657.97,1.06443755]
[1751302452049,0.26437642,658.68,657.98,1.06443755]
[1751302452346,0.26437642,658.68,657.99,1.06443755]
[1751302452549,0.26437642,658.68,657.81,1.491]
[1751302452749,0.26437642,658.68,657.82,1.06498905]
[1751302452948,0.26437642,658.68,657.83,1.06498905]
[1751302453146,0.26437642,658.68,657.84,1.06498905]
[1751302453345,0.26437642,658.68,657.85,1.06498905]
[1751302453545,0.26437642,658.68,657.86,1.06498905]
[1751302453849,0.26437642,658.68,657.87,1.06498905]
[1751302454048,0.26437642,658.68,657.88,1.06498905]
[1751302454249,0.26437642,658.68,657.89,1.06498905]
[1751302454471,2.53894665,658.68,657.9,1.06498905]
[1751302454650,2.53894665,658.68,657.91,1.06498905]
[1751302454949,2.53894665,658.68,657.92,1.06498905]
[1751302455150,2.53894665,658.68,657.93,1.06498905]
[1751302455447,2.27457023,658.65,657.94,1.06498905]
[1751302455644,2.27457023,658.65,657.95,1.06498905]
[1751302455844,2.27457023,658.65,657.96,1.06498905]
[1751302456047,2.27457023,658.65,657.97,1.06498905]
[1751302456246,2.27457023,658.65,657.98,1.06498905]
[1751302456550,2.27457023,658.65,657.99,1.06498905]
[1751302456751,2.27457023,658.65,658.0,1.06498905]
[1751302457051,2.27457023,658.65,657.81,1.491]
[1751302457247,2.27457023,658.65,657.82,1.06573098]
[1751302457548,2.27457023,658.64,657.83,1.06573098]
[1751302457749,0.26437642,658.68,657.84,1.06573098]
[1751302457948,0.26437642,658.68,657.85,1.06573098]
[1751302458149,0.26437642,658.68,657.86,1.06573098]
[1751302458350,0.26437642,658.68,657.87,1.06573098]
[1751302458552,0.26437642,658.68,657.88,1.06573098]
[1751302458751,0.26437642,658.68,657.89,1.06573098]
[1751302458953,0.26437642,658.68,657.9,1.06573098]
[1751302459153,0.26437642,658.68,657.91,1.06573098]
[1751302459350,0.26437642,658.68,657.92,1.06573098]
[1751302459551,0.26437642,658.68,657.93,1.06573098]
[1751302459850,0.26437642,658.68,657.94,1.06573098]
[1751302460054,0.26437642,658.68,657.95,1.06573098]
[1751302460254,0.26437642,658.68,657.96,1.06573098]
[1751302460454,0.26437642,658.68,657.97,1.06573098]
[1751302460655,0.26437642,658.68,657.98,1.06573098]
[1751302460852,0.26437642,658.68,657.99,1.06573098]
[1751302461051,0.26437642,658.68,658.0,1.06573098]
[1751302461353,0.26437642,658.68,657.81,1.491]
[1751302461354,2.27457023,658.61,658.01,1.06573098]
[1751302461553,2.27457023,658.61,658.02,1.06573098]
[1751302461752,2.27457023,658.61,658.03,1.06573098]
[1751302462052,2.27457023,658.61,657.81,1.491]
[1751302462250,2.27457023,658.61,657.82,1.06675221]
[1751302462554,2.27457023,658.55,657.83,1.06675221]
[1751302462754,2.27457023,658.55,657.84,1.06675221]
[1751302462955,2.27457023,658.55,657.85,1.06675221]
[1751302463151,2.27457023,658.57,657.86,1.06675221]
[1751302463351,2.27457023,658.57,657.87,1.06675221]
[1751302463554,2.27457023,658.57,657.88,1.06675221]
[1751302463752,2.27457023,658.57,657.89,1.06675221]
[1751302464052,2.27457023,658.57,657.9,1.06675221]
[1751302464254,2.27457023,658.57,657.91,1.06675221]
[1751302464452,2.27457023,658.6,657.92,1.06675221]
[1751302464652,2.27457023,658.6,657.93,1.06675221]
[1751302464852,2.27457023,658.6,657.94,1.06675221]
[1751302465058,2.27457023,658.52,657.95,1.06675221]
[1751302465257,2.27457023,658.52,657.96,1.06675221]
[1751302465457,2.27457023,658.52,657.83,1.12813473]
[1751302465458,2.27457023,658.52,657.97,1.06675221]
[1751302465656,2.27457023,658.52,657.98,1.06675221]
[1751302465857,2.27457023,658.52,657.99,1.06675221]
[1751302466055,2.27457023,658.52,658.0,1.06675221]
[1751302466257,2.27457023,658.52,658.01,1.06675221]
[1751302466457,2.27457023,658.52,658.02,1.06675221]
[1751302466758,2.27457023,658.52,658.03,1.06675221]
[1751302467054,2.27457023,658.52,658.04,1.06675221]
[1751302467254,2.27457023,658.52,658.05,1.06675221]
[1751302467454,2.27457023,658.53,658.06,1.06675221]
[1751302467657,2.27457023,658.53,658.07,2.057]
[1751302468955,2.27457023,658.52,658.07,2.057]
[1751302469660,2.27457023,658.62,658.07,2.057]
[1751302470257,2.27457023,658.58,658.07,2.057]
[1751302472361,0.26437642,658.68,658.07,2.057]
[1751302480368,2.27457023,658.78,658.07,2.057]
[1751302481065,2.27457023,658.77,658.07,2.057]
[1751302481670,2.27457023,658.76,658.07,2.057]
[1751302482866,2.27457023,658.77,658.07,2.057]
[1751302483071,2.53889444,658.82,658.08,1.06621658]
[1751302483273,0.26432421,658.82,658.09,1.06621658]
[1751302483468,0.26432421,658.82,658.1,1.06621658]
[1751302483769,0.26432421,658.82,658.11,1.06621658]
[1751302483971,0.26432421,658.82,658.12,1.06621658]
[1751302484170,0.26432421,658.82,658.13,1.06621658]
[1751302484368,0.26432421,658.82,658.14,1.06621658]
[1751302484571,0.26432421,658.82,658.15,1.06621658]
[1751302484768,0.26432421,658.82,658.16,1.06621658]
[1751302484968,0.26432421,658.82,658.07,2.057]
[1751302485170,0.26432421,658.82,658.08,1.06550782]
[1751302485474,0.26432421,658.82,658.09,1.06550782]
[1751302485669,0.26432421,658.82,658.1,1.06550782]
[1751302485869,0.26432421,658.82,658.11,1.06550782]
[1751302486073,0.26432421,658.82,658.12,1.06550782]
[1751302486271,0.26432421,658.82,658.13,1.06550782]
[1751302486475,0.26432421,658.82,658.14,1.06550782]
[1751302486671,0.26432421,658.82,658.07,2.057]
[1751302486976,0.26432421,658.82,658.08,1.06544076]
[1751302487277,0.26432421,658.82,658.07,2.057]
[1751302487278,0.26432421,658.82,658.09,1.06544076]
[1751302487473,0.26432421,658.82,658.07,2.057]
[1751302487671,0.26432421,658.82,658.08,1.06553702]
[1751302487876,0.26432421,658.82,658.09,1.06553702]
[1751302488077,0.26432421,658.82,658.07,2.057]
[1751302488274,0.26432421,658.82,658.08,1.06553706]
[1751302488474,0.26432421,658.82,658.09,1.06553706]
[1751302488675,0.26432421,658.82,658.07,2.057]
[1751302488878,0.26432421,658.82,658.08,1.06546276]
[1751302489073,0.26432421,658.82,658.07,2.057]
[1751302489074,0.26432421,658.82,658.09,1.06546276]
[1751302489274,0.26432421,658.82,658.07,2.057]
[1751302489475,0.26432421,658.82,658.08,1.0653926]
[1751302489675,0.26432421,658.82,658.09,1.0653926]
[1751302489879,0.26432421,658.82,658.07,2.057]
[1751302490076,0.26432421,658.82,658.08,1.0653926]
[1751302490280,0.26432421,658.82,658.09,1.0653926]
[1751302490575,0.26432421,658.82,658.1,1.0653926]
[1751302490780,0.26432421,658.82,658.07,2.057]
[1751302490978,0.26432421,658.82,658.08,1.06533229]
[1751302491177,0.26432421,658.82,658.09,1.06533229]
[1751302491478,0.26432421,658.82,658.1,1.06533229]
[1751302491681,0.26432421,658.82,658.07,2.057]
[1751302491881,0.26432421,658.82,658.08,1.06527874]
[1751302492077,0.26432421,658.82,658.09,1.06527874]
[1751302492281,0.26432421,658.82,658.1,1.06527874]
[1751302492479,0.26432421,658.82,658.07,2.057]
[1751302492684,0.26432421,658.82,658.08,1.0652483]
[1751302492983,0.26432421,658.82,658.09,1.0652483]
[1751302493179,0.26432421,658.82,658.1,1.0652483]
[1751302493483,0.26432421,658.82,658.07,2.057]
[1751302493780,0.26432421,658.82,658.08,1.06521157]
[1751302493984,0.26432421,658.82,658.09,1.06521157]
[1751302494184,0.26432421,658.82,658.1,1.06521157]
[1751302494479,0.26432421,658.82,658.07,2.057]
[1751302494781,0.26432421,658.82,658.08,1.06518111]
[1751302494980,0.26432421,658.82,658.09,1.06518111]
[1751302495181,0.26432421,658.82,658.1,1.06518111]
[1751302495382,0.26432421,658.82,658.07,2.057]
[1751302495581,0.26432421,658.82,658.08,1.06516175]
[1751302495783,0.26432421,658.82,658.09,1.06516175]
[1751302495978,0.26432421,658.82,658.1,1.06516175]
[1751302496283,0.26432421,658.82,658.11,1.06516175]
[1751302496585,0.26432421,658.82,658.07,2.057]
[1751302496782,0.26432421,658.82,658.08,1.06509336]
[1751302497081,0.26432421,658.82,658.09,1.06509336]
[1751302497286,0.26432421,658.82,658.1,1.06509336]
[1751302497486,0.26432421,658.82,658.07,2.057]
[1751302497686,0.26432421,658.82,658.08,1.06530581]
[1751302497986,0.26432421,658.82,658.09,1.06530581]
[1751302498183,0.26432421,658.82,658.1,1.06530581]
[1751302498483,0.26432421,658.82,658.07,2.057]
[1751302498683,0.26432421,658.82,658.08,1.06530505]
[1751302498882,0.26432421,658.82,658.09,1.06530505]
[1751302499084,0.26432421,658.82,658.1,1.06530505]
[1751302499286,0.26432421,658.82,658.07,2.057]
[1751302499581,0.26432421,658.82,658.08,1.06550168]
[1751302499785,0.26432421,658.82,658.09,1.06550168]
[1751302499984,0.26432421,658.82,658.1,1.06550168]
[1751302500185,0.26432421,658.82,658.07,2.057]
[1751302500383,0.26432421,658.82,658.08,1.06550168]
[1751302500586,0.26432421,658.82,658.09,1.06550168]
[1751302500784,0.26432421,658.82,658.1,1.06550168]
[1751302501083,0.26432421,658.82,658.11,1.06552487]
[1751302501287,0.26432421,658.82,658.07,2.057]
[1751302501489,0.26432421,658.82,658.08,1.0655309]
[1751302501788,0.26432421,658.82,658.09,1.0655309]
[1751302502088,0.26432421,658.82,658.1,1.0655309]
[1751302502285,0.26432421,658.82,658.11,1.0655309]
[1751302502588,0.26432421,658.82,658.12,1.0655309]
[1751302502788,0.26432421,658.82,658.13,1.0655309]
[1751302503088,0.26432421,658.82,658.07,2.057]
[1751302503288,0.26432421,658.82,658.08,1.06529501]
[1751302503484,0.26432421,658.82,658.09,1.06529501]
[1751302503688,0.26432421,658.82,658.1,1.06529501]
[1751302503888,0.26432421,658.82,658.11,1.06529501]
[1751302504085,0.26432421,658.82,658.12,1.06529501]
[1751302504386,0.26432421,658.82,658.13,1.06529501]
[1751302504589,0.26432421,658.82,658.07,2.057]
[1751302504789,0.26432421,658.82,658.08,1.0652677]
[1751302505084,0.26432421,658.82,658.09,1.0652677]
[1751302505289,0.26432421,658.82,658.1,1.0652677]
[1751302505589,0.26432421,658.82,658.11,1.0652677]
[1751302505885,0.26432421,658.82,658.12,1.0652677]
[1751302506190,0.26432421,658.82,658.13,1.0652677]
[1751302506384,0.26432421,658.82,658.07,2.057]
[1751302506385,0.26432421,658.82,658.14,1.0652677]
[1751302506589,0.26432421,658.82,658.15,1.0652677]
[1751302506886,0.26432421,658.82,658.07,2.057]
[1751302507084,0.26432421,658.82,658.08,1.06517785]
[1751302507287,0.26432421,658.82,658.09,1.06517785]
[1751302507485,0.26432421,658.82,658.1,1.06517785]
[1751302507783,0.26432421,658.82,658.11,1.06517785]
[1751302507987,0.26432421,658.82,658.12,1.06517785]
[1751302508191,0.26432421,658.82,658.13,1.06517785]
[1751302508391,0.26432421,658.82,658.14,1.06517785]
[1751302508591,0.26432421,658.82,658.15,1.06517785]
[1751302508789,0.26432421,658.82,658.07,2.057]
[1751302508992,0.26432421,658.82,658.08,1.06518847]
[1751302509192,0.26432421,658.82,658.09,1.06518847]
[1751302509393,0.26432421,658.82,658.1,1.06518847]
[1751302509594,0.26432421,658.82,658.11,1.06518847]
[1751302509894,0.26432421,658.82,658.12,1.06518847]
[1751302510192,0.26432421,658.82,658.13,1.06518847]
[1751302510390,0.26432421,658.82,658.14,1.06518847]
[1751302510588,0.26432421,658.82,658.15,1.06518847]
[1751302510789,0.26432421,658.82,658.07,2.057]
[1751302511090,0.26432421,658.82,658.08,1.06513]
[1751302511293,0.26432421,658.82,658.09,1.06513]
[1751302511494,0.26432421,658.82,658.1,1.06513]
[1751302511694,0.26432421,658.82,658.11,1.06513]
[1751302511896,0.26432421,658.82,658.12,1.06513]
[1751302512192,0.26432421,658.82,658.13,1.06513]
[1751302512493,0.26432421,658.82,658.14,1.06513]
[1751302512692,0.26432421,658.82,658.15,1.06513]
[1751302512897,0.26432421,658.82,657.98,1.638]
[1751302513097,0.26432421,658.82,657.99,1.06498404]
[1751302513393,0.26432421,658.82,658.0,1.06498404]
[1751302513597,0.26432421,658.82,658.01,1.06498404]
[1751302513797,0.26432421,658.82,658.02,1.06498404]
[1751302513997,0.26432421,658.82,658.03,1.06498404]
[1751302514194,0.26432421,658.82,658.04,1.06498404]
[1751302514397,0.26432421,658.82,658.05,1.06498404]
[1751302514595,0.26432421,658.82,658.06,1.06498404]
[1751302514794,0.26432421,658.82,658.07,1.06498404]
[1751302514997,0.26432421,658.82,658.08,1.06498404]
[1751302515198,0.26432421,658.82,658.09,1.06498404]
[1751302515398,0.26432421,658.82,658.1,1.06498404]
[1751302515596,0.26432421,658.82,658.11,1.06498404]
[1751302515794,0.26432421,658.82,658.12,1.06498404]
[1751302516097,0.26432421,658.82,658.13,1.06498404]
[1751302516301,0.26432421,658.82,658.14,1.06498404]
[1751302516494,0.26432421,658.82,658.13,1.859]
[1751302516698,0.26432421,658.82,658.14,1.06474342]
[1751302516895,0.26432421,658.82,658.13,1.859]
[1751302517095,0.26432421,658.82,658.14,1.06473916]
[1751302517398,0.26432421,658.82,658.13,1.859]
[1751302517596,0.26432421,658.82,658.14,1.06476608]
[1751302517895,0.26432421,658.82,658.13,1.859]
[1751302518098,0.26432421,658.82,658.14,1.06476694]
[1751302518300,0.26432421,658.82,658.13,1.859]
[1751302518497,0.26432421,658.82,658.14,1.06479293]
[1751302518698,0.26432421,658.82,658.13,1.859]
[1751302518897,0.26432421,658.82,658.14,1.06479299]
[1751302519098,0.26432421,658.82,658.15,1.06479299]
[1751302519303,0.26432421,658.82,658.13,1.859]
[1751302519498,0.26432421,658.82,658.14,1.06483247]
[1751302519699,0.26432421,658.82,658.15,1.06483247]
[1751302520002,0.26432421,658.82,658.13,1.859]
[1751302520299,0.26432421,658.82,658.14,1.06483247]
[1751302520500,0.26432421,658.82,658.15,1.06483247]
[1751302520697,0.26432421,658.82,658.13,1.859]
[1751302520902,0.26432421,658.82,658.14,1.06487955]
[1751302521102,0.26432421,658.82,658.15,1.06487955]
[1751302521299,0.26432421,658.82,658.13,1.859]
[1751302521503,0.26432421,658.82,658.14,1.06493393]
[1751302521697,0.26432421,658.82,658.15,1.06493393]
[1751302521900,0.26432421,658.82,658.13,1.859]
[1751302522103,0.26432421,658.82,658.14,1.06493418]
[1751302522399,0.26432421,658.82,658.15,1.06493418]
[1751302522600,0.26432421,658.82,658.13,1.859]
[1751302522799,0.26432421,658.82,658.14,1.06499766]
[1751302523000,0.26432421,658.82,658.15,1.06499766]
[1751302523202,0.26432421,658.82,658.13,1.859]
[1751302523402,0.26432421,658.82,658.14,1.06506993]
[1751302523602,0.26432421,658.82,658.15,1.06506993]
[1751302523806,0.26432421,658.82,658.13,1.859]
[1751302524006,0.26432421,658.82,658.14,1.06506983]
[1751302524201,0.26432421,658.82,658.15,1.06506983]
[1751302524400,0.26432421,658.82,658.13,1.859]
[1751302524401,0.26432421,658.82,658.16,1.06506983]
[1751302524603,0.26432421,658.82,658.13,1.859]
[1751302524807,0.26432421,658.82,658.14,1.06515224]
[1751302525005,0.26432421,658.82,658.15,1.06515224]
[1751302525304,0.26432421,658.82,658.13,1.859]
[1751302525602,0.26432421,658.82,658.14,1.0652426]
[1751302525802,0.26432421,658.82,658.15,1.0652426]
[1751302526006,0.26432421,658.82,658.16,1.0652426]
[1751302526202,0.26432421,658.82,658.13,1.859]
[1751302526506,0.26432421,658.82,658.14,1.0652267]
[1751302526707,0.26432421,658.82,658.15,1.0652267]
[1751302526902,0.26432421,658.82,658.16,1.0652267]
[1751302527106,0.26432421,658.82,658.13,1.859]
[1751302527304,0.26432421,658.82,658.14,1.065262]
[1751302527504,0.26432421,658.82,658.15,1.065262]
[1751302527705,0.26432421,658.82,658.16,1.065262]
[1751302527905,0.26432421,658.82,658.13,1.859]
[1751302528109,0.26432421,658.82,658.14,1.06531551]
[1751302528304,0.26432421,658.82,658.15,1.06531551]
[1751302528510,0.26432421,658.82,658.16,1.06531551]
[1751302528811,0.26432421,658.82,658.13,1.859]
[1751302529009,0.26432421,658.82,658.14,1.06537834]
[1751302529208,0.26432421,658.82,658.15,1.06537834]
[1751302529413,0.26432421,658.82,658.16,1.06537834]
[1751302529609,0.26432421,658.82,658.13,1.859]
[1751302529816,0.26432421,658.82,658.14,1.06544002]
[1751302530016,0.26432421,658.82,658.15,1.06544002]
[1751302530212,0.26432421,658.82,658.16,1.06544002]
[1751302530512,0.26432421,658.82,658.17,1.0655392]
[1751302530714,0.26432421,658.82,658.13,1.859]
[1751302530911,0.26432421,658.82,658.14,1.06554005]
[1751302531117,0.26432421,658.82,658.15,1.06554005]
[1751302531313,0.26432421,658.82,658.16,1.06554005]
[1751302531516,0.26432421,658.82,658.17,1.06554005]
[1751302531712,0.26432421,658.82,658.13,1.859]
[1751302532012,0.26432421,658.82,658.14,1.06561647]
[1751302532218,2.27457023,659.11,658.15,1.06561647]
[1751302532417,0.26423389,659.08,658.16,1.06561647]
[1751302532619,0.26423389,659.08,658.17,1.06561647]
[1751302532818,0.26423389,659.08,658.18,1.06561647]
[1751302533015,0.26423389,659.08,658.19,1.06561647]
[1751302533223,0.26423389,659.08,658.2,1.06561647]
[1751302533419,0.26423389,659.08,658.21,1.06561647]
[1751302533715,0.26423389,659.08,658.22,1.06561647]
[1751302533913,0.26423389,659.08,658.23,1.06561647]
[1751302534120,0.26423389,659.08,658.24,1.06561647]
[1751302534320,0.26423389,659.08,658.13,1.859]
[1751302534321,0.26423389,659.08,658.25,1.06561647]
[1751302534623,0.26423389,659.08,658.26,1.06561647]
[1751302534916,0.26423389,659.08,658.27,1.06561647]
[1751302535215,0.26423389,659.08,658.28,1.06561647]
[1751302535418,0.26423389,659.08,658.29,1.06561647]
[1751302535621,0.26423389,659.08,658.3,1.06561647]
[1751302535919,0.26423389,659.08,658.31,1.06561647]
[1751302536116,0.26423389,659.08,658.24,2.213]
[1751302536314,0.26423389,659.08,658.25,1.0637336]
[1751302536520,0.26423389,659.08,658.26,1.0637336]
[1751302536718,0.26423389,659.08,658.27,1.0637336]
[1751302536920,0.26423389,659.08,658.28,1.0637336]
[1751302537114,0.26423389,659.08,658.29,1.0637336]
[1751302537316,0.26423389,659.08,658.3,1.0637336]
[1751302537520,0.26423389,659.08,658.31,1.0637336]
[1751302537720,0.26423389,659.08,658.24,2.213]
[1751302537916,0.26423389,659.08,658.25,1.06366251]
[1751302538117,0.26423389,659.08,658.26,1.06366251]
[1751302538420,0.26423389,659.08,658.27,1.06366251]
[1751302538620,0.26423389,659.08,658.28,1.06366251]
[1751302538821,0.26423389,659.08,658.29,1.06366251]
[1751302539122,0.26423389,659.08,658.3,1.06366251]
[1751302539318,0.26423389,659.08,658.31,1.06366251]
[1751302539623,0.26423389,659.08,658.32,1.06366251]
[1751302539816,0.26423389,659.08,658.33,1.06366251]
[1751302540017,0.26423389,659.08,658.34,1.06366251]
[1751302540218,0.26423389,659.08,658.24,2.213]
[1751302540422,0.26423389,659.08,658.25,1.06366834]
[1751302540617,0.26423389,659.08,658.26,1.06366834]
[1751302540920,0.26423389,659.08,658.27,1.06366834]
[1751302541123,0.26423389,659.08,658.28,1.06366834]
[1751302541320,0.26423389,659.08,658.29,1.06366834]
[1751302541521,0.26423389,659.08,658.3,1.06366834]
[1751302541724,0.26423389,659.08,658.31,1.06366834]
[1751302542023,0.26423389,659.08,658.32,1.06366834]
[1751302542220,0.26423389,659.08,658.33,1.06366834]
[1751302542424,0.26423389,659.08,658.34,1.06366834]
[1751302542620,0.26423389,659.08,658.35,1.06366834]
[1751302542824,0.26423389,659.08,658.24,2.213]
[1751302543024,0.26423389,659.08,658.25,1.06343706]
[1751302543225,0.26423389,659.08,658.26,1.06343706]
[1751302543424,0.26423389,659.08,658.27,1.06343706]
[1751302543721,0.26423389,659.08,658.24,2.213]
[1751302545426,0.26423389,659.08,658.25,1.06410398]
[1751302545627,0.26423389,659.08,658.26,1.06410398]
[1751302545827,0.26423389,659.08,658.27,1.06410398]
[1751302546027,0.26423389,659.08,658.28,1.06410398]
[1751302546227,0.26423389,659.08,658.29,1.06410398]
[1751302546526,0.26423389,659.08,658.3,1.06410398]
[1751302546726,0.26423389,659.08,658.31,1.06410398]
[1751302546930,0.26423389,659.08,658.32,1.06410398]
[1751302547132,0.26423389,659.08,658.33,1.06410398]
[1751302547326,0.26423389,659.08,658.24,2.213]
[1751302547529,0.26423389,659.08,658.25,1.06369681]
[1751302547732,0.26423389,659.08,658.26,1.06369681]
[1751302547928,0.26423389,659.08,658.27,1.06369681]
[1751302548125,0.26423389,659.08,658.28,1.06369681]
[1751302548331,0.26423389,659.08,658.29,1.06369681]
[1751302548531,0.26423389,659.08,658.3,1.06369681]
[1751302548732,0.26423389,659.08,658.31,1.06369681]
[1751302548931,0.26423389,659.08,658.32,1.06369681]
[1751302549133,0.26423389,659.08,658.33,1.06369681]
[1751302549333,0.26423389,659.08,658.24,2.213]
[1751302549536,0.26423389,659.08,658.25,1.06351112]
[1751302549837,0.26423389,659.08,658.26,1.06351112]
[1751302550134,0.26423389,659.08,658.27,1.06351112]
[1751302550333,0.26423389,659.08,658.28,1.06351112]
[1751302550632,0.26423389,659.08,658.29,1.06351112]
[1751302550837,0.26423389,659.08,658.3,1.06351112]
[1751302551038,0.26423389,659.08,658.31,1.06351112]
[1751302551237,0.26423389,659.08,658.32,1.06351112]
[1751302551434,0.26423389,659.08,658.33,1.06351112]
[1751302551636,0.26423389,659.08,658.24,2.213]
[1751302551839,0.26423389,659.08,658.25,1.06336482]
[1751302552039,0.26423389,659.08,658.26,1.06336482]
[1751302552337,0.26423389,659.08,658.27,1.06336482]
[1751302552538,0.26423389,659.08,658.28,1.06336482]
[1751302552740,0.26423389,659.08,658.29,1.06336482]
[1751302552940,0.26423389,659.08,658.3,1.06336482]
[1751302553137,0.26423389,659.08,658.31,1.06336482]
[1751302553337,0.26423389,659.08,658.32,1.06336482]
[1751302553537,0.26423389,659.08,658.33,1.06336482]
[1751302553741,0.26423389,659.08,658.24,2.213]
[1751302553935,0.26423389,659.08,658.25,1.06327067]
[1751302554241,0.26423389,659.08,658.24,2.213]
[1751302554242,0.26423389,659.08,658.26,1.06327067]
[1751302554436,0.26423389,659.08,658.27,1.06327067]
[1751302554637,0.26423389,659.08,658.28,1.06327067]
[1751302554838,0.26423389,659.08,658.29,1.06327067]
[1751302555141,0.26423389,659.08,658.3,3.43127067]
[1751302555437,0.26423389,659.08,658.31,1.06327067]
[1751302555636,0.26423389,659.08,658.32,1.06327067]
[1751302555836,0.26423389,659.08,658.33,1.06327067]